[Event "Early-Titled-Tuesday-Blitz-April-02-2024"]
[Site "Chess.com"]
[Date "2024.04.02"]
[Round "7"]
[White "Baku_Boulevard"]
[Black "superchess02"]
[Result "1-0"]
[WhiteElo "3040"]
[BlackElo "2855"]
[TimeControl "180+1"]
[EndTime "9:18:32 PDT"]
[Termination "Baku_Boulevard won by checkmate"]

1. e4 {[%clk 0:03:00.9]} 1... c5 {[%clk 0:02:54.7]} 2. Nf3 {[%clk 0:03:01]} 2...
d6 {[%clk 0:02:53.7]} 3. Nc3 {[%clk 0:03:00.7]} 3... Nf6 {[%clk 0:02:53.7]} 4.
e5 {[%clk 0:03:01]} 4... dxe5 {[%clk 0:02:54.4]} 5. Nxe5 {[%clk 0:03:01.9]} 5...
e6 {[%clk 0:02:54.8]} 6. Bb5+ {[%clk 0:03:01]} 6... Nbd7 {[%clk 0:02:54.6]} 7.
d4 {[%clk 0:03:00.8]} 7... a6 {[%clk 0:02:53.5]} 8. Bxd7+ {[%clk 0:03:00.5]}
8... Bxd7 {[%clk 0:02:54.2]} 9. Bg5 {[%clk 0:02:58.5]} 9... Be7 {[%clk
0:02:53.4]} 10. O-O {[%clk 0:02:50.6]} 10... h6 {[%clk 0:02:47.9]} 11. Bh4
{[%clk 0:02:50.3]} 11... Rc8 {[%clk 0:02:24.8]} 12. Bxf6 {[%clk 0:02:41.9]}
12... gxf6 {[%clk 0:02:20.9]} 13. Nxd7 {[%clk 0:02:40.4]} 13... Qxd7 {[%clk
0:02:21.8]} 14. d5 {[%clk 0:02:41.1]} 14... h5 {[%clk 0:02:19.6]} 15. dxe6
{[%clk 0:02:32.3]} 15... fxe6 {[%clk 0:02:13.4]} 16. Qe2 {[%clk 0:02:32.5]}
16... Kf7 {[%clk 0:02:12.4]} 17. Rfe1 {[%clk 0:02:25.6]} 17... Qc6 {[%clk
0:02:12.2]} 18. Rad1 {[%clk 0:02:24.7]} 18... Rcg8 {[%clk 0:02:06.3]} 19. Ne4
{[%clk 0:02:20.4]} 19... f5 {[%clk 0:02:04.6]} 20. Nd6+ {[%clk 0:02:12.9]} 20...
Kf8 {[%clk 0:02:00.5]} 21. g3 {[%clk 0:02:13.1]} 21... Rg6 {[%clk 0:01:04.4]}
22. Nxf5 {[%clk 0:02:11.1]} 22... h4 {[%clk 0:01:02.9]} 23. Qe5 {[%clk
0:02:05.5]} 23... Rhg8 {[%clk 0:00:45.9]} 24. Nxe7 {[%clk 0:01:04.9]} 24... Kxe7
{[%clk 0:00:46.8]} 25. Qe4 {[%clk 0:01:05.2]} 25... hxg3 {[%clk 0:00:44.8]} 26.
fxg3 {[%clk 0:00:58.8]} 26... Qc7 {[%clk 0:00:39.3]} 27. Re3 {[%clk 0:00:58.8]}
27... c4 {[%clk 0:00:33.1]} 28. Rf1 {[%clk 0:00:55.2]} 28... Qb6 {[%clk
0:00:19.7]} 29. Kg2 {[%clk 0:00:51.9]} 29... Qxb2 {[%clk 0:00:12.4]} 30. Qxc4
{[%clk 0:00:48.7]} 30... Qb6 {[%clk 0:00:12.2]} 31. Rb3 {[%clk 0:00:44.1]} 31...
Qc6+ {[%clk 0:00:06.2]} 32. Qxc6 {[%clk 0:00:44.2]} 32... bxc6 {[%clk
0:00:07.1]} 33. Rb6 {[%clk 0:00:44.5]} 33... e5 {[%clk 0:00:06.9]} 34. Rxa6
{[%clk 0:00:43.5]} 34... Rd6 {[%clk 0:00:07.6]} 35. Rf2 {[%clk 0:00:43.2]} 35...
Ke6 {[%clk 0:00:08.2]} 36. Re2 {[%clk 0:00:40.5]} 36... Re8 {[%clk 0:00:07.1]}
37. c4 {[%clk 0:00:38]} 37... Kf5 {[%clk 0:00:05.3]} 38. c5 {[%clk 0:00:37.4]}
38... Rg6 {[%clk 0:00:03.7]} 39. Ra7 {[%clk 0:00:33.6]} 39... e4 {[%clk
0:00:04]} 40. Rf7+ {[%clk 0:00:33.6]} 40... Ke5 {[%clk 0:00:04.5]} 41. Rd7
{[%clk 0:00:29.2]} 41... Rge6 {[%clk 0:00:01.9]} 42. h4 {[%clk 0:00:21.9]} 42...
Ra8 {[%clk 0:00:02.6]} 43. h5 {[%clk 0:00:22.4]} 43... Ra5 {[%clk 0:00:03.2]}
44. Rd6 {[%clk 0:00:20.6]} 44... Rxd6 {[%clk 0:00:01.8]} 45. cxd6 {[%clk
0:00:21.5]} 45... Kxd6 {[%clk 0:00:02.7]} 46. g4 {[%clk 0:00:22.2]} 46... Kd5
{[%clk 0:00:02]} 47. Kg3 {[%clk 0:00:22.4]} 47... Kd4 {[%clk 0:00:02.7]} 48. Kf4
{[%clk 0:00:22.5]} 48... Kd3 {[%clk 0:00:03.3]} 49. Re3+ {[%clk 0:00:22.8]}
49... Kd2 {[%clk 0:00:03.3]} 50. Rxe4 {[%clk 0:00:23.4]} 50... Rxa2 {[%clk
0:00:04]} 51. h6 {[%clk 0:00:23.6]} 51... c5 {[%clk 0:00:04.1]} 52. h7 {[%clk
0:00:22.8]} 52... Ra8 {[%clk 0:00:05]} 53. g5 {[%clk 0:00:23.2]} 53... Kd3
{[%clk 0:00:05.6]} 54. Re7 {[%clk 0:00:22.8]} 54... Rf8+ {[%clk 0:00:05.8]} 55.
Kg4 {[%clk 0:00:23]} 55... c4 {[%clk 0:00:06.7]} 56. g6 {[%clk 0:00:23.6]} 56...
c3 {[%clk 0:00:07.2]} 57. Rd7+ {[%clk 0:00:23.8]} 57... Ke2 {[%clk 0:00:07.3]}
58. Rc7 {[%clk 0:00:23.9]} 58... Kd2 {[%clk 0:00:05.9]} 59. g7 {[%clk
0:00:24.1]} 59... Rd8 {[%clk 0:00:06]} 60. g8=Q {[%clk 0:00:24.2]} 60... Rxg8+
{[%clk 0:00:06.4]} 61. hxg8=Q {[%clk 0:00:24.5]} 61... c2 {[%clk 0:00:07.3]} 62.
Qd5+ {[%clk 0:00:24.4]} 62... Kc1 {[%clk 0:00:07.7]} 63. Qd4 {[%clk 0:00:22.3]}
63... Kb1 {[%clk 0:00:07.8]} 64. Rb7+ {[%clk 0:00:22.7]} 64... Kc1 {[%clk
0:00:07.7]} 65. Qe3+ {[%clk 0:00:20.3]} 65... Kd1 {[%clk 0:00:07.7]} 66. Rd7#
{[%clk 0:00:20.9]} 1-0

[Event "Early-Titled-Tuesday-Blitz-April-02-2024"]
[Site "Chess.com"]
[Date "2024.04.02"]
[Round "7"]
[White "Tonychess32"]
[Black "Matibar"]
[Result "0-1"]
[WhiteElo "2549"]
[BlackElo "2737"]
[TimeControl "180+1"]
[EndTime "9:18:36 PDT"]
[Termination "Matibar won on time"]

1. d4 {[%clk 0:03:00.9]} 1... f5 {[%clk 0:02:58.3]} 2. g3 {[%clk 0:02:57.5]}
2... Nf6 {[%clk 0:02:58.1]} 3. Bg2 {[%clk 0:02:58]} 3... g6 {[%clk 0:02:58.6]}
4. Nc3 {[%clk 0:02:54.4]} 4... Bg7 {[%clk 0:02:56.4]} 5. e4 {[%clk 0:02:54.7]}
5... fxe4 {[%clk 0:02:56.5]} 6. Nxe4 {[%clk 0:02:55]} 6... Nxe4 {[%clk
0:02:56.7]} 7. Bxe4 {[%clk 0:02:54.4]} 7... d5 {[%clk 0:02:57.3]} 8. Bg2 {[%clk
0:02:53.9]} 8... Nc6 {[%clk 0:02:36.8]} 9. Nf3 {[%clk 0:02:51.1]} 9... O-O
{[%clk 0:02:30.8]} 10. h3 {[%clk 0:02:41.5]} 10... Bf5 {[%clk 0:02:30.2]} 11. c3
{[%clk 0:02:40.5]} 11... Qd7 {[%clk 0:02:29.2]} 12. Bf4 {[%clk 0:02:35.4]} 12...
Be4 {[%clk 0:01:53.1]} 13. O-O {[%clk 0:02:29]} 13... Rxf4 {[%clk 0:01:52.9]}
14. gxf4 {[%clk 0:02:28.9]} 14... Rf8 {[%clk 0:01:53.5]} 15. Ne5 {[%clk
0:02:27]} 15... Nxe5 {[%clk 0:01:53.9]} 16. fxe5 {[%clk 0:02:24]} 16... Rf4
{[%clk 0:01:46]} 17. f3 {[%clk 0:01:52.7]} 17... Bf5 {[%clk 0:01:44.2]} 18. Kh2
{[%clk 0:01:48.6]} 18... g5 {[%clk 0:01:43.5]} 19. Qe2 {[%clk 0:01:46.9]} 19...
e6 {[%clk 0:01:43.2]} 20. Rg1 {[%clk 0:01:44.9]} 20... h6 {[%clk 0:01:43.1]} 21.
b3 {[%clk 0:01:33.4]} 21... c5 {[%clk 0:01:40]} 22. dxc5 {[%clk 0:01:22]} 22...
Qc7 {[%clk 0:01:39.9]} 23. Rge1 {[%clk 0:01:21.7]} 23... Qxc5 {[%clk 0:01:39.6]}
24. Qe3 {[%clk 0:01:18.5]} 24... Qc7 {[%clk 0:01:31.4]} 25. Rad1 {[%clk
0:01:18.3]} 25... Bf8 {[%clk 0:01:22.4]} 26. b4 {[%clk 0:01:00.3]} 26... Rc4
{[%clk 0:01:00.3]} 27. Rc1 {[%clk 0:01:00.3]} 27... b6 {[%clk 0:00:50.2]} 28.
Bf1 {[%clk 0:00:59.2]} 28... Rh4 {[%clk 0:00:50]} 29. Rcd1 {[%clk 0:00:53.7]}
29... Qf7 {[%clk 0:00:31.2]} 30. Rd4 {[%clk 0:00:47.7]} 30... Qh5 {[%clk
0:00:31.7]} 31. Rxh4 {[%clk 0:00:46]} 31... Qxh4 {[%clk 0:00:32.6]} 32. Rd1
{[%clk 0:00:39.3]} 32... Bg7 {[%clk 0:00:31.5]} 33. Rd4 {[%clk 0:00:35.2]} 33...
Qh5 {[%clk 0:00:31.5]} 34. Bg2 {[%clk 0:00:23.9]} 34... Qf7 {[%clk 0:00:30.9]}
35. f4 {[%clk 0:00:21.5]} 35... g4 {[%clk 0:00:28.7]} 36. Qg3 {[%clk 0:00:18.1]}
36... h5 {[%clk 0:00:28.2]} 37. hxg4 {[%clk 0:00:17.6]} 37... hxg4 {[%clk
0:00:26.6]} 38. Qh4 {[%clk 0:00:15.3]} 38... Qc7 {[%clk 0:00:26.5]} 39. c4
{[%clk 0:00:14.9]} 39... Bxe5 {[%clk 0:00:23.9]} 40. Qg5+ {[%clk 0:00:15.1]}
40... Qg7 {[%clk 0:00:19.3]} 41. Qxg7+ {[%clk 0:00:13.7]} 41... Bxg7 {[%clk
0:00:19]} 42. Rd1 {[%clk 0:00:13.3]} 42... dxc4 {[%clk 0:00:18.2]} 43. Rd8+
{[%clk 0:00:13.1]} 43... Kh7 {[%clk 0:00:18.6]} 44. Rc8 {[%clk 0:00:12.9]} 44...
Bd3 {[%clk 0:00:18.1]} 45. Kg1 {[%clk 0:00:11.9]} 45... Kg6 {[%clk 0:00:18]} 46.
Bf1 {[%clk 0:00:12.3]} 46... Bd4+ {[%clk 0:00:17.2]} 47. Kg2 {[%clk 0:00:12.1]}
47... Be4+ {[%clk 0:00:16.9]} 48. Kg3 {[%clk 0:00:12.6]} 48... c3 {[%clk
0:00:17.3]} 49. a4 {[%clk 0:00:11.7]} 49... c2 {[%clk 0:00:17.3]} 50. Be2 {[%clk
0:00:08.3]} 50... Be3 {[%clk 0:00:16.7]} 51. Bxg4 {[%clk 0:00:07.5]} 51... c1=Q
{[%clk 0:00:16.8]} 52. Rxc1 {[%clk 0:00:07.5]} 52... Bxc1 {[%clk 0:00:17.7]} 53.
Bxe6 {[%clk 0:00:07.8]} 53... Kf6 {[%clk 0:00:18.2]} 54. Bc4 {[%clk 0:00:06.8]}
54... Bd2 {[%clk 0:00:18.2]} 55. a5 {[%clk 0:00:07]} 55... Bxb4 {[%clk
0:00:17.6]} 56. axb6 {[%clk 0:00:07.5]} 56... axb6 {[%clk 0:00:18.2]} 57. Kf2
{[%clk 0:00:03.1]} 57... Bc5+ {[%clk 0:00:17.9]} 58. Ke2 {[%clk 0:00:01.9]}
58... Kf5 {[%clk 0:00:17.8]} 59. Kd2 {[%clk 0:00:02.1]} 59... Kxf4 {[%clk
0:00:17.9]} 60. Kc3 {[%clk 0:00:02.5]} 60... Ke5 {[%clk 0:00:18.2]} 61. Bf1
{[%clk 0:00:02.7]} 61... Bd5 {[%clk 0:00:17.7]} 62. Be2 {[%clk 0:00:02.9]} 62...
Bd4+ {[%clk 0:00:18.1]} 63. Kb4 {[%clk 0:00:02.6]} 63... Kd6 {[%clk 0:00:18.5]}
64. Bd3 {[%clk 0:00:02.8]} 64... Bc5+ {[%clk 0:00:18.6]} 65. Kb5 {[%clk
0:00:02.1]} 65... Bc6+ {[%clk 0:00:18.2]} 66. Ka6 {[%clk 0:00:01.8]} 66... Kc7
{[%clk 0:00:18.6]} 67. Be2 {[%clk 0:00:02]} 67... Bd7 {[%clk 0:00:18.5]} 68. Bf1
{[%clk 0:00:01.4]} 68... Kd6 {[%clk 0:00:18.4]} 69. Be2 {[%clk 0:00:01.3]} 69...
Ke5 {[%clk 0:00:18.7]} 70. Bf1 {[%clk 0:00:01.5]} 70... Kd4 {[%clk 0:00:19.1]}
71. Be2 {[%clk 0:00:01.7]} 71... Bf5 {[%clk 0:00:19.4]} 0-1

[Event "Early-Titled-Tuesday-Blitz-April-02-2024"]
[Site "Chess.com"]
[Date "2024.04.02"]
[Round "7"]
[White "BestestBP"]
[Black "KetiTsatsalashvili"]
[Result "1/2-1/2"]
[WhiteElo "2207"]
[BlackElo "2417"]
[TimeControl "180+1"]
[EndTime "9:18:37 PDT"]
[Termination "Game drawn - insufficient material"]

1. c4 {[%clk 0:03:00.9]} 1... e6 {[%clk 0:02:59.6]} 2. d4 {[%clk 0:03:00.7]}
2... Nf6 {[%clk 0:02:59.5]} 3. Nf3 {[%clk 0:03:01]} 3... b6 {[%clk 0:02:59.8]}
4. g3 {[%clk 0:03:01.2]} 4... Bb7 {[%clk 0:02:58.7]} 5. Bg2 {[%clk 0:03:02.1]}
5... Bb4+ {[%clk 0:02:58.4]} 6. Bd2 {[%clk 0:03:01.2]} 6... Be7 {[%clk 0:02:59]}
7. O-O {[%clk 0:03:00.9]} 7... O-O {[%clk 0:02:59.4]} 8. Nc3 {[%clk 0:03:01.2]}
8... d5 {[%clk 0:02:59.7]} 9. Ne5 {[%clk 0:02:57.8]} 9... Nbd7 {[%clk 0:02:57]}
10. Qa4 {[%clk 0:02:58.4]} 10... Nxe5 {[%clk 0:02:53.3]} 11. dxe5 {[%clk
0:02:58.5]} 11... Ne4 {[%clk 0:02:52.1]} 12. Nxe4 {[%clk 0:02:55.2]} 12... dxe4
{[%clk 0:02:50.3]} 13. Rfd1 {[%clk 0:02:51.5]} 13... Qe8 {[%clk 0:02:42.5]} 14.
Qc2 {[%clk 0:02:47]} 14... Qc6 {[%clk 0:02:40.4]} 15. b4 {[%clk 0:02:42.7]}
15... b5 {[%clk 0:02:35.4]} 16. Rac1 {[%clk 0:02:35.3]} 16... Rfd8 {[%clk
0:02:22]} 17. cxb5 {[%clk 0:02:24.5]} 17... Qxc2 {[%clk 0:02:20.6]} 18. Rxc2
{[%clk 0:02:23.3]} 18... Bxb4 {[%clk 0:02:19.8]} 19. Rxc7 {[%clk 0:02:12.8]}
19... Bxd2 {[%clk 0:02:17.7]} 20. Rxb7 {[%clk 0:02:09.3]} 20... e3 {[%clk
0:02:13.2]} 21. f4 {[%clk 0:01:57.3]} 21... Rab8 {[%clk 0:02:05]} 22. Bc6 {[%clk
0:01:49.8]} 22... g5 {[%clk 0:01:58.6]} 23. fxg5 {[%clk 0:01:31.2]} 23... Rxb7
{[%clk 0:01:54.6]} 24. Bxb7 {[%clk 0:01:30.9]} 24... Kg7 {[%clk 0:01:50.9]} 25.
h4 {[%clk 0:01:14.6]} 25... Rd4 {[%clk 0:01:44.4]} 26. Kg2 {[%clk 0:01:08.2]}
26... Ra4 {[%clk 0:01:43.2]} 27. Rb1 {[%clk 0:00:49.2]} 27... Rxa2 {[%clk
0:01:41.4]} 28. Rb3 {[%clk 0:00:49.5]} 28... Ba5 {[%clk 0:01:19]} 29. Rxe3
{[%clk 0:00:39.9]} 29... Bb6 {[%clk 0:01:19.2]} 30. Re4 {[%clk 0:00:39.5]} 30...
Rb2 {[%clk 0:01:15]} 31. Bc6 {[%clk 0:00:38.5]} 31... Rc2 {[%clk 0:01:14.5]} 32.
Kf3 {[%clk 0:00:30.3]} 32... a5 {[%clk 0:01:14.2]} 33. Rf4 {[%clk 0:00:21.8]}
33... Rc3+ {[%clk 0:01:12.5]} 34. Kg2 {[%clk 0:00:20.6]} 34... Rc5 {[%clk
0:01:03.5]} 35. Be8 {[%clk 0:00:19]} 35... Rc7 {[%clk 0:00:53.2]} 36. h5 {[%clk
0:00:17]} 36... Re7 {[%clk 0:00:46.4]} 37. Bc6 {[%clk 0:00:16.7]} 37... Ra7
{[%clk 0:00:45.6]} 38. Ra4 {[%clk 0:00:12.1]} 38... Rc7 {[%clk 0:00:33.1]} 39.
Kf3 {[%clk 0:00:12.2]} 39... Rc8 {[%clk 0:00:32.9]} 40. Kg4 {[%clk 0:00:05.4]}
40... Rd8 {[%clk 0:00:32.3]} 41. h6+ {[%clk 0:00:05.7]} 41... Kg8 {[%clk
0:00:30.7]} 42. Be4 {[%clk 0:00:05.1]} 42... Rd4 {[%clk 0:00:24.3]} 43. Rxd4
{[%clk 0:00:05.1]} 43... Bxd4 {[%clk 0:00:25.2]} 44. Kf4 {[%clk 0:00:04.7]}
44... a4 {[%clk 0:00:21.7]} 45. Bc2 {[%clk 0:00:04.8]} 45... a3 {[%clk
0:00:21.7]} 46. Bb3 {[%clk 0:00:05.3]} 46... Kf8 {[%clk 0:00:19.3]} 47. Ke4
{[%clk 0:00:04.9]} 47... Bb6 {[%clk 0:00:18.6]} 48. Kd3 {[%clk 0:00:04.2]} 48...
Ke7 {[%clk 0:00:18.1]} 49. Kc4 {[%clk 0:00:04.2]} 49... Kd7 {[%clk 0:00:17.2]}
50. Kd3 {[%clk 0:00:04.1]} 50... Kc7 {[%clk 0:00:17]} 51. Ke4 {[%clk 0:00:03.9]}
51... Bf2 {[%clk 0:00:15.6]} 52. g4 {[%clk 0:00:03.6]} 52... Be1 {[%clk
0:00:15.3]} 53. g6 {[%clk 0:00:03.7]} 53... fxg6 {[%clk 0:00:14.4]} 54. Bxe6
{[%clk 0:00:03.9]} 54... Bd2 {[%clk 0:00:14.1]} 55. Kd3 {[%clk 0:00:02.5]} 55...
Bxh6 {[%clk 0:00:13.7]} 56. Kc2 {[%clk 0:00:02.1]} 56... Bg7 {[%clk 0:00:14]}
57. Kb3 {[%clk 0:00:02.5]} 57... Bxe5 {[%clk 0:00:12.5]} 58. Bg8 {[%clk
0:00:02.7]} 58... h5 {[%clk 0:00:11.6]} 59. gxh5 {[%clk 0:00:03.2]} 59... gxh5
{[%clk 0:00:12.5]} 60. Kxa3 {[%clk 0:00:03.2]} 60... h4 {[%clk 0:00:12.6]} 61.
Be6 {[%clk 0:00:03.9]} 61... Kb6 {[%clk 0:00:12.9]} 62. Kb4 {[%clk 0:00:03.8]}
62... Bd6+ {[%clk 0:00:12.8]} 63. Kc4 {[%clk 0:00:04]} 63... Bc7 {[%clk
0:00:12.9]} 64. Bd7 {[%clk 0:00:03.4]} 64... Bd8 {[%clk 0:00:13]} 65. e4 {[%clk
0:00:02.7]} 65... Bc7 {[%clk 0:00:13.1]} 66. Kd5 {[%clk 0:00:01.8]} 66... h3
{[%clk 0:00:12.1]} 67. Bxh3 {[%clk 0:00:02.1]} 67... Kxb5 {[%clk 0:00:12.5]} 68.
e5 {[%clk 0:00:02.6]} 68... Bxe5 {[%clk 0:00:12.4]} 1/2-1/2

[Event "Early-Titled-Tuesday-Blitz-April-02-2024"]
[Site "Chess.com"]
[Date "2024.04.02"]
[Round "7"]
[White "Nemegejas"]
[Black "Robert_Chessmood"]
[Result "0-1"]
[WhiteElo "2821"]
[BlackElo "2979"]
[TimeControl "180+1"]
[EndTime "9:18:40 PDT"]
[Termination "Robert_Chessmood won by resignation"]

1. d4 {[%clk 0:03:00.9]} 1... d5 {[%clk 0:02:59.1]} 2. Nf3 {[%clk 0:02:58.1]}
2... Nf6 {[%clk 0:02:59]} 3. g3 {[%clk 0:02:58.8]} 3... Bf5 {[%clk 0:02:55.1]}
4. Bg2 {[%clk 0:02:59]} 4... e6 {[%clk 0:02:54.6]} 5. c4 {[%clk 0:02:58]} 5...
c6 {[%clk 0:02:54]} 6. Nc3 {[%clk 0:02:58.5]} 6... Nbd7 {[%clk 0:02:49.7]} 7.
O-O {[%clk 0:02:57.7]} 7... Be7 {[%clk 0:02:47.7]} 8. Nd2 {[%clk 0:02:57.7]}
8... O-O {[%clk 0:02:47.1]} 9. e4 {[%clk 0:02:58.3]} 9... dxe4 {[%clk
0:02:46.9]} 10. Ndxe4 {[%clk 0:02:59]} 10... Nxe4 {[%clk 0:02:34.6]} 11. Nxe4
{[%clk 0:02:59.9]} 11... Bxe4 {[%clk 0:02:28.4]} 12. Bxe4 {[%clk 0:02:59.7]}
12... Bg5 {[%clk 0:02:26]} 13. f4 {[%clk 0:02:58.2]} 13... Bf6 {[%clk
0:02:25.1]} 14. Be3 {[%clk 0:02:58.4]} 14... g6 {[%clk 0:02:21.4]} 15. Qe2
{[%clk 0:02:54]} 15... Bg7 {[%clk 0:02:20.5]} 16. Rad1 {[%clk 0:02:53.2]} 16...
Nf6 {[%clk 0:02:19.9]} 17. Bf3 {[%clk 0:02:51]} 17... Qc7 {[%clk 0:02:18.5]} 18.
Kg2 {[%clk 0:02:49.4]} 18... Rfd8 {[%clk 0:02:17.2]} 19. g4 {[%clk 0:02:42.1]}
19... Rd7 {[%clk 0:02:13.6]} 20. h4 {[%clk 0:02:37]} 20... Rad8 {[%clk
0:02:02.3]} 21. h5 {[%clk 0:02:36.3]} 21... gxh5 {[%clk 0:01:59.9]} 22. gxh5
{[%clk 0:02:29.6]} 22... Kh8 {[%clk 0:01:47.9]} 23. Kh1 {[%clk 0:02:18.6]} 23...
Qa5 {[%clk 0:01:41.2]} 24. Rg1 {[%clk 0:02:12]} 24... Qf5 {[%clk 0:01:22.7]} 25.
Rg5 {[%clk 0:01:47.2]} 25... Qh3+ {[%clk 0:01:22.6]} 26. Kg1 {[%clk 0:01:48]}
26... Bh6 {[%clk 0:01:20.2]} 27. Bg2 {[%clk 0:01:22.8]} 27... Qh4 {[%clk
0:01:19.2]} 28. Rf1 {[%clk 0:01:21.7]} 28... Bxg5 {[%clk 0:00:51]} 29. fxg5
{[%clk 0:01:22.6]} 29... Ng4 {[%clk 0:00:51.5]} 30. Bf4 {[%clk 0:01:05.3]} 30...
Rxd4 {[%clk 0:00:51]} 31. Be5+ {[%clk 0:01:05.6]} 31... Nxe5 {[%clk 0:00:38.1]}
32. Qxe5+ {[%clk 0:01:06.5]} 32... Kg8 {[%clk 0:00:38.5]} 33. h6 {[%clk
0:01:05.6]} 33... Kf8 {[%clk 0:00:16.1]} 34. Qg7+ {[%clk 0:00:22.5]} 34... Ke7
{[%clk 0:00:16.1]} 35. Qxf7+ {[%clk 0:00:13.7]} 35... Kd6 {[%clk 0:00:16.3]} 36.
Qf6 {[%clk 0:00:14.6]} 36... Kc5 {[%clk 0:00:11.2]} 37. Qe7+ {[%clk 0:00:10.6]}
37... Kb6 {[%clk 0:00:08.7]} 38. Qb4+ {[%clk 0:00:10.1]} 38... Kc7 {[%clk
0:00:08.4]} 39. Rf7+ {[%clk 0:00:06]} 39... R4d7 {[%clk 0:00:08.4]} 40. Qa5+
{[%clk 0:00:05]} 40... Kc8 {[%clk 0:00:06.7]} 41. Rf1 {[%clk 0:00:02.2]} 41...
Qd4+ {[%clk 0:00:05.5]} 42. Kh1 {[%clk 0:00:02.8]} 42... Qh4+ {[%clk 0:00:04.6]}
43. Kg1 {[%clk 0:00:02.9]} 43... Rd1 {[%clk 0:00:04.9]} 44. Qe5 {[%clk
0:00:02.4]} 44... Rxf1+ {[%clk 0:00:03.5]} 45. Bxf1 {[%clk 0:00:02.4]} 45...
Qd4+ {[%clk 0:00:03.2]} 46. Qxd4 {[%clk 0:00:03.1]} 46... Rxd4 {[%clk
0:00:03.8]} 47. Be2 {[%clk 0:00:04]} 47... Re4 {[%clk 0:00:02.8]} 48. Kf2 {[%clk
0:00:04]} 48... Re5 {[%clk 0:00:01.8]} 49. g6 {[%clk 0:00:03.8]} 49... Rf5+
{[%clk 0:00:01.3]} 50. Ke3 {[%clk 0:00:03]} 50... hxg6 {[%clk 0:00:01.2]} 51.
Bg4 {[%clk 0:00:01.9]} 51... Rf8 {[%clk 0:00:01.4]} 52. Bxe6+ {[%clk 0:00:01.8]}
52... Kd8 {[%clk 0:00:01.9]} 53. h7 {[%clk 0:00:02.7]} 53... Rh8 {[%clk
0:00:02.4]} 54. Bg8 {[%clk 0:00:03.4]} 54... Ke7 {[%clk 0:00:03.1]} 55. Kf4
{[%clk 0:00:04]} 55... Kf6 {[%clk 0:00:03.7]} 56. c5 {[%clk 0:00:03.4]} 56...
Kg7 {[%clk 0:00:03.4]} 57. Kg5 {[%clk 0:00:03.7]} 57... Rxh7 {[%clk 0:00:03.9]}
58. Bxh7 {[%clk 0:00:03]} 58... Kxh7 {[%clk 0:00:04.8]} 59. Kf6 {[%clk 0:00:03]}
59... Kh6 {[%clk 0:00:05.3]} 60. b4 {[%clk 0:00:02.1]} 60... g5 {[%clk
0:00:05.7]} 61. Kf5 {[%clk 0:00:02.8]} 61... Kh5 {[%clk 0:00:06.1]} 62. Ke6
{[%clk 0:00:03.5]} 62... g4 {[%clk 0:00:06.5]} 63. Kd7 {[%clk 0:00:04.3]} 63...
g3 {[%clk 0:00:07.1]} 64. b5 {[%clk 0:00:05.1]} 64... g2 {[%clk 0:00:05.1]} 65.
bxc6 {[%clk 0:00:06]} 65... bxc6 {[%clk 0:00:05]} 66. Kxc6 {[%clk 0:00:05.9]}
66... g1=Q {[%clk 0:00:05.9]} 67. a4 {[%clk 0:00:06.4]} 67... Qb1 {[%clk
0:00:05.6]} 0-1